Cogmind - Beta 17 @@@ ROGUE MODE // 2026.08.08 @ 05:14:05 Player: TheSkyeDoctor Result: Destroyed by S-27 Virus with Autogun Performance ------------- Evolutions (5) 2500 Regions Visited (12) 2400 Robots Destroyed (210) 1050 Value Destroyed (9303) 9303 Prototype IDs (4) 80 Alien Tech Used (0) 0 Bonus (3277) 3277 TOTAL SCORE: 18610 Bonus ------- High Alert Combat Kills 2730 Follower Combat Kills 147 Entered Garrisons 400 Cogmind --------- Core Integrity 0/1000 Matter 208/300 Energy 99/100 System Corruption 28% Temperature Cool (0) Movement Core (50) Location -5/Extension Parts ------- > --- POWER (2) -------- (None) > --- PROPULSION (4) --- (None) > --- UTILITY (7) ------ Hacking Suite > --- WEAPON (4) ------- (None) > --- INVENTORY (5) ---- Energy Well (350) High-capacity Matter Pod (200) Advanced Terrain Scanner Improved Terrain Scan Processor Improved Datajack Peak State ------------ > --- POWER ------------ Light Angular Momentum Engine Neutrino Core > --- PROPULSION ------- Carbon-fiber Leg Improved Carbon-fiber Leg Biometal Leg Biometal Leg > --- UTILITY ---------- Advanced Heat Sink Huge Storage Unit Enhanced Optical Array Advanced Signal Interpreter Improved Targeting Computer Advanced Remote Force Field Hacking Suite > --- WEAPON ----------- Advanced Plasma Cannon Hypervelocity Railgun Linear Accelerator Impact Mace > --- INVENTORY -------- Light Angular Momentum Engine Micro Fission Core Light Treads Advanced Heat Sink Energy Well High-capacity Matter Pod High-capacity Matter Pod Advanced Terrain Scanner Improved Terrain Scan Processor Wave Gun Quantum Rifle Advanced Plasma Cannon Autogun KE Penetrator Heavy Missile Launcher Heavy Missile Launcher Improved Datajack Improved Plasma Cutter Great Maul [Rating: 98] Favorites ----------- Power Light Angular Momentum Engine Engine Light Angular Momentum Engine Power Core Nuclear Core Reactor Light Antimatter Reactor Propulsion Light Treads Treads Light Treads Leg Carbon-fiber Leg Wheel Armored Wheel Utility Huge Storage Unit Device Advanced Heat Sink Storage Huge Storage Unit Processor Improved Targeting Computer Hackware Hacking Suite Protection Hardened Medium Armor Plating Weapon Impact Mace Energy Gun Plasma Rifle Energy Cannon Heavy Particle Cannon Ballistic Gun Flak Gun Ballistic Cannon Linear Accelerator Launcher Heavy Missile Launcher Impact Weapon Impact Mace Slashing Weapon Scythe Special Melee Weapon Improved Datajack Build | -11 -10 -10 -10 -9 -8 -7 -7 -6 -5 -5 -5 -5 ------- Run | Yrd Mat Min Exi Min Mat Fac Gar Fac Fac Gar Fac Ext Slots Evolved 10 | . . . . . 4 2 . 2 2 . . . Power 1 | . . . . . . . . 1 . . . . Propulsion 2 | . . . . . 1 1 . . . . . . Utility 5 | . . . . . 1 1 . 1 2 . . . Weapon 2 | . . . . . 2 . . . . . . . Parts Attached 112 | 7 . . . . 12 5 20 23 2 26 17 . Power 14 | 1 . . . . 1 . 3 3 . 3 3 . Engine 8 | 1 . . . . 1 . . 2 . 3 1 . Core 5 | . . . . . . . 3 . . . 2 . Reactor 1 | . . . . . . . . 1 . . . . Propulsion 35 | 2 . . . . 2 1 9 7 . 9 5 . Treads 22 | 2 . . . . 2 1 9 7 . 1 . . Leg 12 | . . . . . . . . . . 7 5 . Wheel 1 | . . . . . . . . . . 1 . . Hover . | . . . . . . . . . . . . . Flight . | . . . . . . . . . . . . . Utility 27 | 2 . . . . 4 2 3 4 2 7 3 . Device 7 | 1 . . . . 1 . 1 1 1 1 1 . Storage 2 | 1 . . . . 1 . . . . . . . Processor 7 | . . . . . . 1 . 2 1 2 1 . Hackware 1 | . . . . . . . . . . 1 . . Protection 10 | . . . . . 2 1 2 1 . 3 1 . Artifact . | . . . . . . . . . . . . . Weapon 36 | 2 . . . . 5 2 5 9 . 7 6 . Energy Gun 9 | 1 . . . . 2 . . 2 . 2 2 . Energy Cannon 2 | . . . . . 1 . . . . . 1 . Ballistic Gun 11 | 1 . . . . 1 . 3 3 . 2 1 . Ballistic Cannon 5 | . . . . . . 1 . 2 . 2 . . Launcher 4 | . . . . . . . 1 1 . . 2 . Special Weapon . | . . . . . . . . . . . . . Impact Weapon 3 | . . . . . . 1 . 1 . 1 . . Slashing Weapon 1 | . . . . . 1 . . . . . . . Piercing Weapon . | . . . . . . . . . . . . . Special Melee Weapon 1 | . . . . . . . 1 . . . . . Unidentified Prototypes 2 | . . . . . 1 . . 1 . . . . Corrupted Parts 1 | . . . . . . 1 . . . . . . System Corruption 3 | . . . . . . 3 . . . . . . Parts Lost 77 | . . . . . 5 2 10 9 1 22 28 . Power 12 | . . . . . 1 . 2 2 . 3 4 . Propulsion 24 | . . . . . 1 . 4 2 1 7 9 . Utility 16 | . . . . . 1 1 1 1 . 5 7 . Weapon 25 | . . . . . 2 1 3 4 . 7 8 . Highest Loss Streak 17 | . . . . . 2 1 3 2 1 3 17 . To Critical Strikes 2 | . . . . . 1 . . . . . 1 . Average Backups 18 | 2 3 7 8 8 14 22 24 24 20 16 17 4 Power 1 | . 1 1 1 1 1 1 1 . 1 . . . Propulsion 2 | . 1 1 1 1 2 3 3 2 1 1 2 . Utility 9 | . 1 5 5 5 7 10 11 12 10 8 6 4 Weapon 5 | . . . 1 1 2 6 6 7 7 5 6 . Tool/Special . | . . . . . . . . . . . . . Unused Backups 28 | . . . . . 1 3 5 7 . . 8 4 Power 2 | . . . . . . . 1 . . . 1 . Propulsion 4 | . . . . . 1 . 1 1 . . 1 . Utility 13 | . . . . . . . 3 4 . . 2 4 Weapon 8 | . . . . . . 3 . 2 . . 3 . Tool/Special 1 | . . . . . . . . . . . 1 . Average Slot Usage (%) 92 | . 100 100 100 100 95 99 99 98 99 79 93 7 Engine 5 | . 14 14 14 14 8 7 . 5 5 5 4 . Core 2 | . . . . . . . 6 4 . . 2 . Treads 17 | . 28 28 28 28 25 30 29 24 22 3 . . Leg 4 | . . . . . . . . . . 9 21 . Device 7 | . 14 14 14 14 12 7 6 6 11 6 6 . Storage 6 | . 14 14 14 14 9 7 7 6 5 5 4 . Processor 10 | . . . . . . 6 7 12 16 14 16 . Hackware 1 | . . . . . . . . . . 1 5 5 Protection 4 | . . . . . 5 7 7 6 5 4 2 . Energy Gun 6 | . 14 14 14 14 17 7 . . 11 8 1 . Energy Cannon 2 | . . . . . 1 7 6 3 . . 1 . Ballistic Gun 8 | . 14 14 14 14 12 3 11 8 5 3 7 . Ballistic Cannon 2 | . . . . . . 3 2 4 . 1 4 . Impact Weapon 4 | . . . . . . 2 6 6 5 4 4 . Peak Build Rating 98 | 7 8 8 8 8 28 35 37 71 77 75 98 7 Average Rating 47 | 5 7 8 8 8 21 30 35 53 76 57 83 5 On Entrance 27 | . 7 8 8 8 8 27 35 34 70 72 75 4 Avg Prop Armor Cover (%) 7 | . . . . . . . . . . 6 30 . Naked Turns . | . . . . . . . . . . . . . Heaviest Build 153 | 12 12 12 12 12 106 105 114 132 131 131 153 1 Greatest Support 116 | 40 40 40 40 40 62 82 82 116 116 86 89 3 Greatest Overweight (x) 35 | . . . . . 2 1 1 2 1 35 2 . Average Overweight (x) 1 | . . . . . 1 1 1 1 1 3 . . Largest Inventory Capacity 25 | 8 8 8 8 8 25 25 25 25 25 25 25 5 Average Capacity 23 | 7 8 8 8 8 25 25 25 25 25 25 24 5 Most Carried 25 | 3 7 8 8 8 25 25 25 25 21 20 20 5 Average Carried 18 | 2 3 7 8 8 14 22 24 24 20 16 17 4 Final Capacity 25 | 8 8 8 8 8 25 25 25 25 25 25 5 5 Final Carried 24 | 3 7 8 8 8 21 24 24 22 20 19 5 5 Class Distribution -------------------- 70% | Scavenger-Gunner 10% | Mutant 6% | Tank 6% | Scavenger-Mutant 5% | Gunner Dominant Class ---------------- Mutant | -10/Materials Mutant | -10/Mines Mutant | -10/Exiles Mutant | -9/Mines Tank | -8/Materials Scavenger-Gunner | -7/Factory Scavenger-Gunner | -7/Garrison Scavenger-Gunner | -6/Factory Scavenger-Gunner | -5/Factory Scavenger-Gunner | -5/Garrison Scavenger-Gunner | -5/Factory Mutant | -5/Extension Resources | -11 -10 -10 -10 -9 -8 -7 -7 -6 -5 -5 -5 -5 ----------- Run | Yrd Mat Min Exi Min Mat Fac Gar Fac Fac Gar Fac Ext Matter Collected 4170 | 297 51 51 . . 581 84 595 968 47 702 794 . Remotely . | . . . . . . . . . . . . . Salvage Created 7981 | 162 146 94 . . 1095 205 763 2443 172 1204 1697 . Parts 357 | 15 12 5 . . 60 12 45 85 10 52 61 . Haulers Intercepted 4 | . . . . . 1 . . 2 . . 1 . Recyclers Shooed 1 | . . . . . . . . 1 . . . . Parts Field Recycled . | . . . . . . . . . . . . . Retrieved Matter . | . . . . . . . . . . . . . Parts Self-Destructed . | . . . . . . . . . . . . . Prevented . | . . . . . . . . . . . . . Parts Restored . | . . . . . . . . . . . . . Kills | -11 -10 -10 -10 -9 -8 -7 -7 -6 -5 -5 -5 -5 ------- Run | Yrd Mat Min Exi Min Mat Fac Gar Fac Fac Gar Fac Ext Combat Hostiles Destroyed 161 | . 5 2 . . 17 3 22 36 5 42 29 . Melee 21 | . . . . . 2 1 4 5 . 5 4 . Guns 61 | . 5 2 . . 12 2 5 10 5 15 5 . Cannons 31 | . . . . . 2 . 7 12 . 2 8 . AOE 31 | . . . . . 1 . 3 1 . 16 10 . Classes Destroyed 15 | 2 3 . . . 5 1 1 1 . 2 . . Worker 13 | . . . . . 2 . . 5 . . 6 . Builder 6 | . . . . . 1 . . 2 . . 3 . Tunneler 4 | 4 . . . . . . . . . . . . Hauler 4 | . . . . . 1 . . 2 . . 1 . Recycler 9 | 1 . . . . 2 . . 4 . . 2 . Watcher 13 | . 1 . . . 4 1 1 4 1 . 1 . Swarmer 53 | . 3 . . . 4 . 11 5 5 21 4 . Cutter 7 | . . . . . . . . . . 7 . . Grunt 65 | . 2 2 . . 7 . 4 20 . 12 18 . Brawler 1 | . . . . . . . . . . 1 . . Duelist 1 | . . . . . . . . 1 . . . . Sentry 19 | . . . . . 5 2 5 5 . 1 1 . Specialist 1 | . . . . . . . 1 . . . . . Hunter 3 | . . . . . 1 . 1 1 . . . . Programmer 11 | . . . . . . 1 . 4 . . 6 . Best Kill Streak 14 | 3 3 2 . . 7 2 4 5 5 14 10 . Combat Bots Only 14 | . 3 2 . . 7 2 4 4 5 14 5 . Max Kills in Single Turn 6 | 1 2 1 . . 2 1 2 2 2 6 4 . Gunslinging 1 | . 1 . . . . . . . 1 1 . . Exploded 6 | . . . . . 1 . 2 1 . 6 2 . Melee 1 | . . . . . 1 1 1 1 . 1 1 . Uniques/NPCs Destroyed . | . . . . . . . . . . . . . Combat | -11 -10 -10 -10 -9 -8 -7 -7 -6 -5 -5 -5 -5 -------- Run | Yrd Mat Min Exi Min Mat Fac Gar Fac Fac Gar Fac Ext Hostile Shots Fired 1052 | . 15 13 . . 90 78 173 243 22 164 237 17 Missed 314 | . 5 5 . . 28 28 63 69 6 40 66 4 Hits 738 | . 10 8 . . 62 50 110 174 16 124 171 13 Melee 37 | . . . . . . . . 1 . 34 2 . Projectile 701 | . 10 8 . . 62 50 110 173 16 90 169 13 Critical Strikes 36 | . . . . . 4 . 1 5 1 15 10 . Damage Taken 12354 | . 120 107 . . 877 441 1771 2588 171 2589 3528 162 Core 1667 | . . 54 . . 130 65 214 201 21 194 626 162 Absorbed by Shields 582 | . . . . . . . . . 64 238 238 42 Core Remaining (%) 78 | 100 . . . 78 76 . 60 76 . . . . Volleys Fired 274 | 9 28 6 . . 43 7 32 56 6 45 42 . Largest 4 | 2 2 2 . . 4 3 3 3 3 4 4 . Hottest 312 | 60 60 60 . . 176 162 162 154 185 224 312 . Shots Fired 737 | 18 52 12 . . 124 21 94 163 18 129 106 . Gun 506 | 18 52 12 . . 115 8 40 87 18 102 54 . Cannon 206 | . . . . . 9 13 52 73 . 15 44 . Launcher 25 | . . . . . . . 2 3 . 12 8 . Special . | . . . . . . . . . . . . . Kinetic 401 | 9 28 6 . . 50 7 58 125 6 36 76 . Thermal 274 | 9 24 6 . . 48 7 30 35 12 81 22 . Explosive 25 | . . . . . . . 2 3 . 12 8 . Electromagnetic 37 | . . . . . 26 7 4 . . . . . Robot Hit Streak 16 | 2 9 5 . . 10 8 11 12 10 16 10 . Robot Miss Streak 8 | 2 7 1 . . 5 2 8 6 2 4 3 . Penetration Max 2 | . . . . . . . 1 1 . 1 2 . Secondary Targets 6 | . 2 . . . . . . . 3 1 . . Max Gunslinging Chain 1 | . 1 . . . . . . . 1 1 . . Shots Hit Robots 578 | 8 29 10 . . 88 16 72 156 11 97 91 . Core Hits 422 | 6 11 5 . . 48 8 42 138 10 82 72 . Critical Kills 16 | . . . . . . . 2 6 . 3 5 . Critical Parts Destroyed 23 | . 1 . . . . . 2 7 . 4 9 . Critical Strikes 49 | . 1 . . . 2 . 6 13 . 12 15 . Burn 3 | . . . . . . . . . . 3 . . Destroy 14 | . 1 . . . . . . 1 . 1 11 . Blast 5 | . . . . . . . 2 . . 2 1 . Smash 25 | . . . . . . . 4 12 . 6 3 . Sever 2 | . . . . . 2 . . . . . . . Melee Attacks 222 | . . . . . 14 1 42 54 1 73 37 . Impact 205 | . . . . . . 1 39 54 1 73 37 . Slashing 14 | . . . . . 14 . . . . . . . Piercing . | . . . . . . . . . . . . . Sneak Attacks 14 | . . . . . 1 . 3 6 . . 4 . Combat Hostiles . | . . . . . . . . . . . . . Follow-up Attacks . | . . . . . . . . . . . . . Damage Inflicted 20894 | 89 344 117 . . 1916 349 2024 5216 235 4783 5821 . Guns 6139 | 89 344 117 . . 1134 125 479 1256 235 1720 640 . Cannons 3858 | . . . . . 175 185 756 1429 . 188 1125 . Explosions 5489 | . . . . . 241 . 244 354 . 1855 2795 . Melee 5380 | . . . . . 338 39 545 2177 . 1020 1261 . Ramming 28 | . . . . . 28 . . . . . . . Kinetic 5466 | 48 222 73 . . 361 115 654 2102 70 487 1334 . Thermal 4456 | 41 122 44 . . 748 81 500 583 165 1421 751 . Explosive 4928 | . . . . . . . 244 354 . 1855 2475 . Electromagnetic 636 | . . . . . 441 114 81 . . . . . Impact 5042 | . . . . . . 39 545 2177 . 1020 1261 . Slashing 338 | . . . . . 338 . . . . . . . Piercing . | . . . . . . . . . . . . . Highest Corruption 28 | . . . . . . 4 7 1 . 5 28 28 Average Corruption 6 | . . . . . . 3 4 1 . 5 9 28 Corruption Purged . | . . . . . . . . . . . . . Corruption Blocked . | . . . . . . . . . . . . . Effects 162 | . . . . . . 4 42 2 . 59 54 1 Message Errors 37 | . . . . . . 1 9 . . 15 12 . Matter Fused 54 | . . . . . . 1 14 2 . 22 15 . Heat Flow Errors 18 | . . . . . . . 4 . . 8 5 1 Energy Discharges 16 | . . . . . . . 7 . . 4 5 . Data Loss (minor) 22 | . . . . . . 1 4 . . 7 10 . Misfires 4 | . . . . . . . 1 . . 1 2 . Alerts 4 | . . . . . . 1 1 . . 2 . . Misdirections 1 | . . . . . . . . . . . 1 . Weapon Failures 6 | . . . . . . . 2 . . . 4 . Overload Shots . | . . . . . . . . . . . . . Overflow Damage 1749 | . . . . . 47 14 209 600 . 415 464 . Projectiles 96 | . . . . . . 14 23 21 . 24 14 . Explosions 238 | . . . . . . . 28 . . 104 106 . Melee 1415 | . . . . . 47 . 158 579 . 287 344 . Knockbacks 39 | . . . . . . 2 1 15 . 10 11 . Impact 18 | . . . . . . . . 5 . 6 7 . Kinetic 19 | . . . . . . 2 1 9 . 3 4 . Secondary 2 | . . . . . . . . 1 . 1 . . Self-Inflicted Damage 937 | . . . . . 17 . . 166 . 374 380 . Shots 18 | . . . . . 1 . . 3 . 7 7 . Rammed 1 | . . . . . 1 . . . . . . . Targets Rammed 1 | . . . . . 1 . . . . . . . Kicked . | . . . . . . . . . . . . . Crushed . | . . . . . . . . . . . . . Highest Temperature 409 | 2 60 60 . . 161 104 144 156 200 409 251 167 Average Temperature 71 | 2 33 42 . . 43 52 53 45 87 126 67 87 Received Heat Transfer 2714 | . 60 60 . . 333 114 174 790 . 444 739 . Effects 4 | . . . . . . . . . . 4 . . Energy Bleed 2 | . . . . . . . . . . 2 . . Short Circuit 1 | . . . . . . . . . . 1 . . Damage (minor) 1 | . . . . . . . . . . 1 . . Siege Activations . | . . . . . . . . . . . . . Martial Activations . | . . . . . . . . . . . . . Shielding Activations . | . . . . . . . . . . . . . Robots Disrupted . | . . . . . . . . . . . . . Combat Hostiles . | . . . . . . . . . . . . . Robots Corrupted 22 | . . . . . 1 . 3 10 . 4 4 . Combat Hostiles 16 | . . . . . . . 3 8 . 3 2 . Parts Fried 29 | . . . . . 3 . 1 17 . 5 3 . Impact Corruptions 51 | . . . . . 1 . 6 23 . 10 11 . Robots Melted 1 | . . . . . . . . . . 1 . . Combat Hostiles 1 | . . . . . . . . . . 1 . . Parts Melted 14 | . . . . . 3 . 1 . . 10 . . Heat Transferred 8091 | 100 275 100 . . 1243 111 700 853 375 3499 835 . Parts Sabotaged 3 | . . . . . . . . 3 . . . . Parts Stolen . | . . . . . . . . . . . . . Parts Stripped . | . . . . . . . . . . . . . Power Chain Reactions 2 | . . . . . 2 . . . . . . . Alert | -11 -10 -10 -10 -9 -8 -7 -7 -6 -5 -5 -5 -5 ------- Run | Yrd Mat Min Exi Min Mat Fac Gar Fac Fac Gar Fac Ext Maximum Alert Level 5 | . . . . . 1 . 3 3 2 5 5 3 Low Security (%) 24 | 100 100 100 . 100 99 100 13 . . . . . Level 1 8 | . . . . . . . 13 16 31 8 . . Level 2 23 | . . . . . . . 46 62 68 2 . . Level 3 15 | . . . . . . . 26 20 . 29 . 100 Level 4 17 | . . . . . . . . . . 24 92 . Level 5 9 | . . . . . . . . . . 35 7 . High Security . | . . . . . . . . . . . . . Max Security . | . . . . . . . . . . . . . Peak Influence 2541 | 5 80 51 . . 199 51 1013 972 473 2541 1775 835 Initial 1333 | . . 1 . . . 36 31 531 473 306 1333 835 Average 726 | . 24 21 . . 54 17 568 570 418 1342 1317 828 Influence Increases 6981 | 25 127 50 . . 575 117 1102 1221 125 2455 1184 . Destroy 0b10 Robot/C 3320 | . 100 40 . . 340 60 540 720 100 840 580 . Destroy 0b10 Robot/NC 250 | 25 5 . . . 50 5 5 85 5 5 65 . Destroy Leader 522 | . 22 10 . . 100 32 50 172 12 40 84 . Allied During Kill 28 | . . . . . . . 28 . . . . . Successful Hack 79 | . . . . . 29 4 . . 4 12 30 . Disable Machine 480 | . . . . . 15 . 30 180 . 105 150 . Anti-Garrison Action 1300 | . . . . . . . 300 . . 1000 . . Destroy Structure 807 | . . . . . 11 1 119 64 4 378 230 . Partial Spotted 15 | . . . . . . 15 . . . . . . Lose Combat Pursuer 180 | . . . . . 30 . 30 . . 75 45 . Influence Decreases 6166 | 25 123 53 1 . 494 153 134 1266 655 352 2018 892 Entered New Map 3252 | . . 3 1 . . 45 14 482 495 132 1208 872 Time Decay 1994 | 25 123 50 . . 294 108 . 694 150 . 530 20 Lost Part 750 | . . . . . 50 . 100 90 10 220 280 . Lost Ally 20 | . . . . . . . 20 . . . . . Purge Threat 150 | . . . . . 150 . . . . . . . Squads Dispatched 22 | . 1 . . . 1 2 . 10 . . 8 . Investigation 1 | . . . . . . . . . . . 1 . Extermination 8 | . . . . . . 1 . 4 . . 3 . Reinforcement 7 | . 1 . . . 1 . . 2 . . 3 . Assault 3 | . . . . . . . . 2 . . 1 . Garrison 3 | . . . . . . 1 . 2 . . . . Intercept . | . . . . . . . . . . . . . Searches Triggered . | . . . . . . . . . . . . . Construction Impeded 2 | . . . . . . . . . . . 2 . Haulers Reinforced 2 | . . . . . . . . 1 . . 1 . Active Scanning Responses . | . . . . . . . . . . . . . Cargo Convoy Interrupts . | . . . . . . . . . . . . . Stealth | -11 -10 -10 -10 -9 -8 -7 -7 -6 -5 -5 -5 -5 --------- Run | Yrd Mat Min Exi Min Mat Fac Gar Fac Fac Gar Fac Ext Distress Signals 8 | . . . . . 1 . 1 1 . . 5 . Communications Jammed . | . . . . . . . . . . . . . Distress Signals . | . . . . . . . . . . . . . Times Spotted 228 | . 9 2 . . 25 5 30 45 6 47 54 5 Peak Tracking Total 11 | . 3 2 . . 3 3 5 5 5 10 11 5 Tactical Retreats 8 | . . . . . 1 . 1 . . 4 2 . Traps | -11 -10 -10 -10 -9 -8 -7 -7 -6 -5 -5 -5 -5 ------- Run | Yrd Mat Min Exi Min Mat Fac Gar Fac Fac Gar Fac Ext Traps Triggered 16 | . . . . . . 1 2 . . 8 3 2 Indirectly . | . . . . . . . . . . . . . Trap Hack Attempts . | . . . . . . . . . . . . . Triggered . | . . . . . . . . . . . . . Disarmed . | . . . . . . . . . . . . . Reprogrammed . | . . . . . . . . . . . . . Reused . | . . . . . . . . . . . . . Traps Extracted . | . . . . . . . . . . . . . Installed . | . . . . . . . . . . . . . Triggered . | . . . . . . . . . . . . . Machines | -11 -10 -10 -10 -9 -8 -7 -7 -6 -5 -5 -5 -5 ---------- Run | Yrd Mat Min Exi Min Mat Fac Gar Fac Fac Gar Fac Ext Machines Disabled 41 | . . . . . 1 . 6 12 . 12 10 . Max in Single Turn 5 | . . . . . 1 . 1 3 . 2 5 . Garrison Access 1 | . . . . . . . . 1 . . . . Garrison Relay 7 | . . . . . . . 4 . . 3 . . Phase Generator 1 | . . . . . . . . . . 1 . . Machines Repaired . | . . . . . . . . . . . . . Machines Dismantled . | . . . . . . . . . . . . . Machines Sabotaged . | . . . . . . . . . . . . . Overloaded Fab Kills . | . . . . . . . . . . . . . Hacking | -11 -10 -10 -10 -9 -8 -7 -7 -6 -5 -5 -5 -5 --------- Run | Yrd Mat Min Exi Min Mat Fac Gar Fac Fac Gar Fac Ext Machines Accessed 19 | . . . . . 6 1 . 6 1 1 4 . Terminals 15 | . . . . . 6 . . 4 . 1 4 . Fabricators . | . . . . . . . . . . . . . Repair Stations . | . . . . . . . . . . . . . Recycling Units . | . . . . . . . . . . . . . Scanalyzers 1 | . . . . . . . . 1 . . . . Garrison Access 3 | . . . . . . 1 . 1 1 . . . Total Hacks 35 | . . . . . 13 1 . 8 2 1 10 . Successful 19 | . . . . . 8 1 . 4 1 1 4 . Failed 16 | . . . . . 5 . . 4 1 . 6 . Catastrophic 3 | . . . . . 1 . . 1 . . 1 . Database Lockouts . | . . . . . . . . . . . . . Manual 27 | . . . . . 11 . . 6 . . 10 . Terminals 30 | . . . . . 13 . . 6 . 1 10 . Fabricators . | . . . . . . . . . . . . . Repair Stations . | . . . . . . . . . . . . . Recycling Units . | . . . . . . . . . . . . . Scanalyzers 1 | . . . . . . . . 1 . . . . Garrison Access 4 | . . . . . . 1 . 1 2 . . . Terminal Hacks 4 | . . . . . 2 . . . . 1 1 . Prototype ID Bank 1 | . . . . . 1 . . . . . . . Branch Access Points 1 | . . . . . . . . . . . 1 . Emergency Access Points 1 | . . . . . . . . . . 1 . . Unreport Threat 1 | . . . . . 1 . . . . . . . Fabricator Hacks . | . . . . . . . . . . . . . Repair Station Hacks . | . . . . . . . . . . . . . Recycling Unit Hacks . | . . . . . . . . . . . . . Scanalyzer 1 | . . . . . . . . 1 . . . . Retrieve Study 1 | . . . . . . . . 1 . . . . Garrison Access Hacks 3 | . . . . . . 1 . 1 1 . . . Unlock Access 2 | . . . . . . 1 . . 1 . . . Seal Access 1 | . . . . . . . . 1 . . . . Unauthorized Hacks 11 | . . . . . 6 . . 2 . . 3 . Terminals 11 | . . . . . 6 . . 2 . . 3 . Botnet 11 | . . . . . 6 . . 2 . . 3 . Fabricators . | . . . . . . . . . . . . . Repair Stations . | . . . . . . . . . . . . . Recycling Units . | . . . . . . . . . . . . . Scanalyzers . | . . . . . . . . . . . . . Garrison Access . | . . . . . . . . . . . . . Data Cores Recovered . | . . . . . . . . . . . . . Used . | . . . . . . . . . . . . . Hacking Detections 15 | . . . . . 5 . . 4 1 1 4 . Full Trace Events 1 | . . . . . . . . . . . 1 . Feedback Events . | . . . . . . . . . . . . . Feedback Blocked . | . . . . . . . . . . . . . Robot Schematics Acquired . | . . . . . . . . . . . . . Robots Built . | . . . . . . . . . . . . . Authchips . | . . . . . . . . . . . . . Time . | . . . . . . . . . . . . . Total Robot Build Rating . | . . . . . . . . . . . . . Part Schematics Acquired . | . . . . . . . . . . . . . Parts Built . | . . . . . . . . . . . . . Authchips . | . . . . . . . . . . . . . Time . | . . . . . . . . . . . . . Total Part Build Rating . | . . . . . . . . . . . . . Part Studies Acquired 1 | . . . . . . . . 1 . . . . Parts Repaired . | . . . . . . . . . . . . . Time . | . . . . . . . . . . . . . Parts Recycled . | . . . . . . . . . . . . . Recycled Matter . | . . . . . . . . . . . . . Retrieved Matter . | . . . . . . . . . . . . . Retrieved Components . | . . . . . . . . . . . . . Parts Scanalyzed . | . . . . . . . . . . . . . Part Schematics Acquired . | . . . . . . . . . . . . . Parts Damaged . | . . . . . . . . . . . . . Bothacking | -11 -10 -10 -10 -9 -8 -7 -7 -6 -5 -5 -5 -5 ------------ Run | Yrd Mat Min Exi Min Mat Fac Gar Fac Fac Gar Fac Ext Used RIF Installer . | . . . . . . . . . . . . . Robots Hacked . | . . . . . . . . . . . . . Non-combat . | . . . . . . . . . . . . . Combat . | . . . . . . . . . . . . . Robot Hacks Applied . | . . . . . . . . . . . . . Relay Couplers Released 24 | . . . . . . . 13 . . 11 . . Machine Destruction 24 | . . . . . . . 13 . . 11 . . Fabnet Peak Effective % . | . . . . . . . . . . . . . Robots Rewired 3 | . . . . . . . 3 . . . . . Allies Hacked . | . . . . . . . . . . . . . Hacks Repelled . | . . . . . . . . . . . . . Allies | -11 -10 -10 -10 -9 -8 -7 -7 -6 -5 -5 -5 -5 -------- Run | Yrd Mat Min Exi Min Mat Fac Gar Fac Fac Gar Fac Ext Total Allies 4 | . . 1 . . . . 3 . . . . . Largest Group 3 | . . 1 1 1 . . 3 . . . . . Highest-Rated Group 72 | . . 31 31 31 . . 72 . . . . . Highest-Rated Ally 31 | . . 31 31 31 . . 24 . . . . . Initial Warlord ECA Mod 14 | . . . . . . . . 7 6 6 14 14 Total Orders . | . . . . . . . . . . . . . Ally Attacks 22 | . . . . . . . 22 . . . . . Total Damage 488 | . . . . . . . 488 . . . . . Kills 5 | . . . . . . . 5 . . . . . Allies Corrupted . | . . . . . . . . . . . . . Allies Melted . | . . . . . . . . . . . . . Intel | -11 -10 -10 -10 -9 -8 -7 -7 -6 -5 -5 -5 -5 ------- Run | Yrd Mat Min Exi Min Mat Fac Gar Fac Fac Gar Fac Ext Active Infowar (turns) 4443 | 29 439 114 55 151 629 . . . . 1566 1460 . Optics 3026 | . . . . . . . . . . 1566 1460 . Seismic 1417 | 29 439 114 55 151 629 . . . . . . . Robot Analysis Total . | . . . . . . . . . . . . . Derelict Logs Recovered 1 | . . 1 . . . . . . . . . . Drone Launches . | . . . . . . . . . . . . . Drone Recoveries . | . . . . . . . . . . . . . Exploration | -11 -10 -10 -10 -9 -8 -7 -7 -6 -5 -5 -5 -5 ------------- Run | Yrd Mat Min Exi Min Mat Fac Gar Fac Fac Gar Fac Ext Turns Passed 12120 | 189 439 114 55 151 1563 349 1568 2861 314 2990 1485 42 Spaces Moved 4613 | 106 222 60 35 91 543 127 542 1090 121 993 651 32 Core 101 | 18 . . . . . . . . . 1 50 32 Treads 3074 | 88 222 60 35 91 543 127 542 1090 121 155 . . Legs 1188 | . . . . . . . . . . 587 601 . Wheels 250 | . . . . . . . . . . 250 . . Hover . | . . . . . . . . . . . . . Flight . | . . . . . . . . . . . . . Fastest Speed 50 | 50 160 160 160 160 235 236 236 200 240 187 50 50 Average Speed 219 | 141 160 160 160 160 246 236 239 220 240 252 175 50 Slowest Speed 1800 | 160 160 160 160 160 320 236 240 320 240 1800 256 50 Overloaded Moves . | . . . . . . . . . . . . . Propulsion Burnouts . | . . . . . . . . . . . . . Robots Hopped . | . . . . . . . . . . . . . Potential Cave-ins . | . . . . . . . . . . . . . Cave-ins Triggered 1 | . . . . . . . 1 . . . . . Exploration Rate (%) 26 | 5 34 14 8 19 51 3 53 33 3 87 22 11 Regions Visited 12 Branch Regions 4 Pre-discovered Areas . | . . . . . . . . . . . . . Known Exits Taken 3 | . . . . . . 1 . . 1 . 1 . Unknown Exits Taken 7 | 1 1 1 1 1 1 . . 1 . . . . Scrap Searched 2 | . . 1 . 1 . . . . . . . . Spaces Dug 29 | . . . . . 4 . 6 3 1 9 6 . Terrain Destroyed 399 | . . . . . 11 . 35 63 1 170 119 . Melee 29 | . . . . . 4 . 6 3 1 9 6 . Projectile 20 | . . . . . 2 . 2 1 . 2 13 . AOE 350 | . . . . . 5 . 27 59 . 159 100 . Terrain Rammed . | . . . . . . . . . . . . . Walls Destroyed . | . . . . . . . . . . . . . Machines Disabled . | . . . . . . . . . . . . . Actions | -11 -10 -10 -10 -9 -8 -7 -7 -6 -5 -5 -5 -5 --------- Run | Yrd Mat Min Exi Min Mat Fac Gar Fac Fac Gar Fac Ext Total 5670 | 124 254 66 34 97 655 160 679 1340 129 1226 848 58 Wait 215 | . 1 . . 7 18 7 15 75 . 18 74 . Move 4601 | 105 221 59 34 90 542 127 541 1089 120 991 650 32 Hop . | . . . . . . . . . . . . . Pick Up 90 | 3 4 1 . . 22 9 12 18 . 11 10 . Fast Attach 44 | 7 . . . . 3 1 3 5 . 22 3 . Attach 61 | . . . . . 6 4 7 12 2 16 13 1 Detach 8 | . . . . . . 1 . . . 4 2 1 Swap 33 | . . . . . 3 . 12 11 . 4 3 . Drop 54 | . . . . . 3 3 13 20 . 1 14 . Fire 274 | 9 28 6 . . 43 7 32 56 6 45 42 . Melee 222 | . . . . . 14 1 42 54 1 73 37 . Ram . | . . . . . . . . . . . . . Kick . | . . . . . . . . . . . . . Crush 1 | . . . . . 1 . . . . . . . Escape Stasis 67 | . . . . . . . 2 . . 41 . 24 Rewire . | . . . . . . . . . . . . . Trap . | . . . . . . . . . . . . . Miscellaneous . | . . . . . . . . . . . . . Route ------- -11/Scrapyard -10/Materials -10/Mines -10/Exiles -9/Mines -8/Materials -7/Factory -7/Garrison (discovered 2 exits: *Fac x2) -6/Factory -5/Factory -5/Garrison (discovered 3 exits: *Fac x3) -5/Factory (discovered 6 exits: *Fac x2 / Upp x2 / *Ext x2) -5/Extension History --------- Turn | Location | Event 14 | -11/Scrapyard | Discovered new exit (range 15) 190 | -11/Scrapyard | Entered Materials 305 | -10/Materials | Build established: Mutant 511 | -10/Materials | Discovered new exit (range 9) 629 | -10/Materials | Entered Mines 662 | -10/Mines | Learned Materials trap positions 692 | -10/Mines | Received a Mining Laser from a helpful Derelict 735 | -10/Mines | Deemed a non-threat by the Exiles lab entrance 735 | -10/Mines | Discovered new exit (range 5) 743 | -10/Mines | Entered Exiles 743 | -10/Exiles | Accompanied by 1 ally 774 | -10/Exiles | Discovered new exit (range 14) 798 | -10/Exiles | Entered Mines 798 | -9/Mines | Accompanied by 1 ally 863 | -9/Mines | Assembled infested the area 868 | -9/Mines | Assisted by a Guerilla fighting off Assembled 931 | -9/Mines | Discovered new exit (range 7) 949 | -9/Mines | Entered Materials 949 | -8/Materials | Evolved 4 slots: Propulsion x1, Utility x1, Weapon x2 950 | -8/Materials | Loaded intel: 23 trap records 1284 | -8/Materials | Build established: Gunner 1749 | -8/Materials | Destroyed 7 combat bots 1873 | -8/Materials | Build established: Tank 1946 | -8/Materials | Discovered new exit (range 8) 2512 | -8/Materials | Entered Factory 2512 | -7/Factory | Evolved 2 slots: Propulsion x1, Utility x1 2806 | -7/Factory | Build established: Scavenger-Gunner 2810 | -7/Factory | Garrison activated, responded to threat 2861 | -7/Factory | Identified exit to Garrison 2861 | -7/Factory | Entered Garrison 2889 | -7/Garrison | Triggered checkpoint 2939 | -7/Garrison | Lost 3 parts (1p1n1w) 3005 | -7/Garrison | Garrison Relay disabled 3037 | -7/Garrison | Triggered checkpoint 3253 | -7/Garrison | Garrison Relay disabled 3559 | -7/Garrison | Triggered checkpoint 3643 | -7/Garrison | Triggered checkpoint 3751 | -7/Garrison | Discovered new exit (range 8) 3813 | -7/Garrison | Triggered checkpoint 3842 | -7/Garrison | Garrison Relay disabled 4001 | -7/Garrison | Triggered checkpoint 4045 | -7/Garrison | Triggered checkpoint 4052 | -7/Garrison | Crushed by falling debris 4267 | -7/Garrison | Discovered new exit (range 13) 4325 | -7/Garrison | Triggered checkpoint 4370 | -7/Garrison | Garrison Relay disabled 4429 | -7/Garrison | Entered Factory 4429 | -6/Factory | Evolved 2 slots: Power x1, Utility x1 5520 | -6/Factory | Garrison activated, responded to threat 6179 | -6/Factory | First assault squad dispatched 6978 | -6/Factory | Discovered new exit (range 5) 7290 | -6/Factory | Entered another Factory area 7290 | -5/Factory | Evolved 2 slots: Utility x2 7485 | -5/Factory | Identified exit to Garrison 7604 | -5/Factory | Entered Garrison 7662 | -5/Garrison | Triggered checkpoint 7910 | -5/Garrison | Triggered checkpoint 7927 | -5/Garrison | Triggered checkpoint 7964 | -5/Garrison | Destroyed 14 combat bots 8149 | -5/Garrison | Lost 3 parts (1n2u) 8299 | -5/Garrison | Discovered new exit (range 13) 8450 | -5/Garrison | Triggered checkpoint 8512 | -5/Garrison | Triggered checkpoint 8611 | -5/Garrison | Lost 3 parts (1u2w) 8671 | -5/Garrison | Garrison Relay disabled 8822 | -5/Garrison | Triggered checkpoint 8848 | -5/Garrison | Build established: Scavenger-Mutant 8922 | -5/Garrison | Triggered checkpoint 9009 | -5/Garrison | Discovered new exit (range 12) 9166 | -5/Garrison | Build established: Scavenger-Gunner 9267 | -5/Garrison | Lost 3 parts (1u2w) 9488 | -5/Garrison | Discovered new exit (range 21) 9854 | -5/Garrison | Triggered checkpoint 9890 | -5/Garrison | Lost 3 parts (2n1w) 9917 | -5/Garrison | Garrison Relay disabled 10127 | -5/Garrison | Phase Generator disabled 10154 | -5/Garrison | Build established: Scavenger-Mutant 10316 | -5/Garrison | Identified exit to Factory 10360 | -5/Garrison | Garrison Relay disabled 10417 | -5/Garrison | Attempted to access garrison exit controls, blocked by remote lockdown 10528 | -5/Garrison | Build established: Scavenger-Gunner 10594 | -5/Garrison | Entered Factory 10594 | -5/Factory | Discovered new exit (range 7) 10659 | -5/Factory | Identified exit to Factory 10847 | -5/Factory | Lost 3 parts (1n1u1w) 11193 | -5/Factory | Discovered exit to Factory (range 9) 11315 | -5/Factory | System corruption reached 10% 11494 | -5/Factory | First assault squad dispatched 11855 | -5/Factory | Identified exit to Upper Caves 11855 | -5/Factory | Identified exit to Extension 11978 | -5/Factory | Lost 3 parts (1p2w) 12040 | -5/Factory | Core integrity fell below 50% 12061 | -5/Factory | Core integrity fell below 20% 12079 | -5/Factory | Entered Extension 12089 | -5/Extension | Lost 17 parts (2p6n5u4w) 12121 | -5/Extension | Destroyed by S-27 Virus with Autogun Last Messages --------------- 12102_ Field strength at 22. 12103_ Field strength at 16. 12104_ Field strength at 10. 12105_ Field strength at 4. 12106_ Stasis field depleted. 12111_ Triggered Stasis Trap. 12111_ A bubble of rippling energy engulfs the area. 12111_ Field strength at 94. 12112_ Field strength at 88. 12113_ Field strength at 82. 12114_ Field strength at 72. 12115_ Field strength at 66. 12116_ Field strength at 52. 12117_ Field strength at 46. 12118_ Field strength at 36. 12118_ U-05 Engineer lays Concrete. 12119_ Field strength at 22. 12120_ Field strength at 2. 12120_ Stasis field depleted. Map ----- +----------------------------------------------------+ | | | | | | | | | | | | | ????????????????????????????????? | | ????????????????????????????????? | | ?????????????????????#??????????? | | ???????????????????? ??????????? | | ??????????????????? ?????????? | | ????????########## ?????????? | | ????????# ????????? | | ????????# ????????? | | ????????# ????????? | | ????????# ???????? | | ????????# ???????? | | ????????# ??????? | | ?????#### ??????? | | ?????# s ??????? | | ?????# s ######+##?????????????? | | ?????# s #?????????????????????? | | ?????# ss#?????????????????????? | | ?????# ^ #?????????????????????? | | ?????# u #?????????????????????? | | ?????# @ #?????????????????????? | | ?????# #?????????????????????? | | ?????# #?????????????????????? | | ?????# #?????????????????????? | | ?????# #?????????????????????? | | ?????# #?????????????????????? | | ?????# #?????????????????????? | | ?????# #?????????????????????? | | ?????# #?????????????????????? | | ?????# #?????????????????????? | | ?????# ####?????????????????????? | | ?????# #????????????????????????? | | ?????# #????????????????????????? | | ?????# #????????????????????????? | | ?????# #????????????????????????? | | ?##### #####????????????????????? | | ?# "" "" #????????????????????? | | ?# " " ##########???????????? | | ?# ??????????? | | ?# ??????????? | | ?# ??????????? | | ?# ??????????? | | ?# ??????????? | | ?# ##########???????????? | | ?# #????????????????????? | +----------------------------------------------------+ Best States ------------- Heat Dissipation 59 Energy Generation 34 Energy Capacity 430 Matter Stores 300 Matter Capacity 300 Sight Range 22 Terrain Scan Density 10 Armor Coverage 225 Evasion (%) 50 Targeting Accuracy 6 Target Analysis 5 Core Analysis 6 Recoil Reduction 4 Offensive Hacking 10 Item Schematics ----------------- None Robot Schematics ------------------ None Fabricated ------------ Nothing Repaired ---------- Nothing Studied --------- Lgt. Treads | -6/Factory | Hacked Alien Tech Used ----------------- None Achievements -------------- None Challenges ------------ None Game ------ Seed PiercingDeliveryBefriender Manual? 0 Play Time 00:58:39 Cumulative 154.7 hours Start 2026.08.08 @ 04:15:05 End 2026.08.08 @ 05:14:05 Sessions 1 Manual Loads 0 Difficulty Rogue Special Mode None Game No. 313 Rogue 313 Adventurer 0 Explorer 0 Win Type - Total 2 Types 2/0/0/0/0/0/0/0/0/0 Lore% 57 Gallery% 57 Achievement% 45 Wizard Run 0 Options --------- Layout 2 ASCII 0 Keyboard 1 Movement Arrows Keybinds 0 Fullscreen 1 Font 24/Smallcaps Map View 50x44 Zoom Use 0% Tactical HUD 1 Map Filters NONE Filters NONE Steam 1 RUN: 8ecf7b60-9a94-4b23-b9a4-8a96547e2661